[Event "All India GP Rapid-ch 2019"]
[Site "Tamil Nadu"]
[Date "2019.11.17"]
[Round "6.1"]
[White "Shyaamnikhil, P."]
[Black "Harikrishnan.A.Ra"]
[Result "0-1"]
[ECO "A07"]
[WhiteElo "2413"]
[BlackElo "1995"]
[Annotator "RC"]
[PlyCount "70"]
[EventDate "2019.11.17"]
[EventType "rapid"]
[EventCountry "IND"]
[SourceTitle "playchess.com"]
[Source "ChessBase"]
[SourceQuality "1"]
[TimeControl "900+5"]

1. g3 {[%emt 0:00:00]} e5 {[%emt 0:00:00]} 2. Bg2 {[%emt 0:00:00]} d5 {[%emt 0:00:02]} 3. d3 {[%emt 0:00:19]} Nf6 {[%emt 0:00:18]} 4. Nf3 {[%emt 0:00:32]} Nc6 {[%emt 0:00:09]} 5. O-O {[%emt 0:00:06]} Be7 {[%emt 0:00:17]} 6. a3 {[%emt 0:00:05]} O-O {[%emt 0:00:12]} 7. b4 {[%emt 0:01:17]} e4 {[%emt 0:00:02]} 8. Nfd2 {[%emt 0:00:15]} exd3 {[%emt 0:00:43]} 9. cxd3 {[%emt 0:00:31]} Bg4 {[%emt 0:01:42]} 10. h3 {[%emt 0:00:05]} Be6 {[%emt 0:00:20]} 11. Bb2 {[%emt 0:01:28]} Qd7 {[%emt 0:00:13]} 12. Kh2 {[%emt 0:00:21]} a5 {[%emt 0:00:42]} 13. b5 {[%emt 0:00:22]} Na7 {[%emt 0:00:06]} 14. a4 {[%emt 0:00:11]} c6 {[%emt 0:00:03]} 15. bxc6 {[%emt 0:00:16]} bxc6 {[%emt 0:00:01]} 16. e4 {[%emt 0:02:16]} dxe4 {[%emt 0:00:28]} 17. dxe4 {[%emt 0:01:27]} Rab8 {[%emt 0:00:11]} 18. Qc2 {[%emt 0:01:01]} Rfd8 {[%emt 0:00:37]} 19. Be5 {[%emt 0:00:21]} Bd6 {[%emt 0:00:33]} 20. Bxf6 {[%emt 0:01:11]} gxf6 {[%emt 0:00:02]} 21. Nc4 {[%emt 0:00:04]} Bb4 {[%emt 0:00:21]} 22. Nba3 {[%emt 0:01:06]} Qd3 {[%emt 0:00:21]} 23. Qc1 {[%emt 0:00:17]} Bc3 {[%emt 0:02:37]} 24. Rd1 {[%emt 0:00:16]} Qxd1 {[%emt 0:00:11]} 25. Qxd1 {[%emt 0:00:02]} Rxd1 {[%emt 0:00:02]} 26. Rxd1 {[%emt 0:00:01]} Rb4 {[%emt 0:00:08]} 27. Rd3 {[%emt 0:02:26]} Be1 {[%emt 0:00:29]} 28. Nxa5 {[%emt 0:00:39]} Rxa4 {[%emt 0:00:34]} 29. Nb7 {[%emt 0:00:01]} Bxf2 {[%emt 0:00:03]} 30. Nc2 {[%emt 0:00:12]} Nb5 {[%emt 0:00:35]} 31. Rf3 {[%emt 0:00:10]} Bb6 {[%emt 0:00:02]} 32. e5 {[%emt 0:00:11]} fxe5 {[%emt 0:00:24]} 33. Rd3 {[%emt 0:00:02]} Bf5 {[%emt 0:00:27]} 34. Rd2 {[%emt 0:00:09]} Ra2 {[%emt 0:00:01]} 35. Bxc6 {[%emt 0:00:04]} Nd4 {[%emt 0:00:05]} 0-1